[Event "*** Titled Tuesday Blitz"]
[Site "Chess.com"]
[Date "2021.03.02"]
[Round "1"]
[White "krzyzan94"]
[Black "Alex-11211"]
[Result "1-0"]
[WhiteElo "2706"]
[BlackElo "2371"]
[TimeControl "180+1"]
[EndTime "10:02:31 PST"]
[Termination "krzyzan94 won by resignation"]

1. Nf3 {[%clk 0:02:59.8]} 1... c5 {[%clk 0:02:59.7]} 2. e4 {[%clk 0:02:57.6]}
2... g6 {[%clk 0:02:59.6]} 3. g3 {[%clk 0:02:48.7]} 3... Bg7 {[%clk 0:02:59.1]}
4. Bg2 {[%clk 0:02:49.3]} 4... Nc6 {[%clk 0:02:56.6]} 5. O-O {[%clk 0:02:49.8]}
5... e5 {[%clk 0:02:43.3]} 6. a3 {[%clk 0:02:45.7]} 6... Nge7 {[%clk 0:02:42.9]}
7. b4 {[%clk 0:02:40.8]} 7... cxb4 {[%clk 0:02:39.9]} 8. axb4 {[%clk 0:02:41.7]}
8... Nxb4 {[%clk 0:02:40.3]} 9. Ba3 {[%clk 0:02:42.3]} 9... Nbc6 {[%clk
0:02:39.7]} 10. Bd6 {[%clk 0:02:38.3]} 10... O-O {[%clk 0:02:37.9]} 11. Nc3
{[%clk 0:02:35.2]} 11... Re8 {[%clk 0:02:26.2]} 12. Nb5 {[%clk 0:02:29.9]} 1-0

[Event "*** Titled Tuesday Blitz"]
[Site "Chess.com"]
[Date "2021.03.02"]
[Round "1"]
[White "Matensien"]
[Black "j2806"]
[Result "1-0"]
[WhiteElo "2500"]
[BlackElo "2070"]
[TimeControl "180+1"]
[EndTime "10:02:31 PST"]
[Termination "Matensien won by resignation"]

1. Nf3 {[%clk 0:02:50.8]} 1... d5 {[%clk 0:02:53]} 2. c4 {[%clk 0:02:49.5]} 2...
Nf6 {[%clk 0:02:51.2]} 3. cxd5 {[%clk 0:02:48.7]} 3... Nxd5 {[%clk 0:02:48.7]}
4. d4 {[%clk 0:02:48.6]} 4... e6 {[%clk 0:02:35.7]} 5. e4 {[%clk 0:02:47.8]}
5... Nf6 {[%clk 0:02:36.2]} 6. Bd3 {[%clk 0:02:41.4]} 6... Bb4+ {[%clk
0:02:32.6]} 7. Nc3 {[%clk 0:02:40.3]} 7... Nc6 {[%clk 0:02:32.2]} 8. O-O {[%clk
0:02:38.5]} 8... O-O {[%clk 0:02:24.2]} 9. e5 {[%clk 0:02:37.8]} 9... Nd5 {[%clk
0:02:22.3]} 10. Bxh7+ {[%clk 0:02:37.1]} 10... Kxh7 {[%clk 0:02:20.6]} 11. Ng5+
{[%clk 0:02:36.8]} 11... Kg8 {[%clk 0:02:20.5]} 12. Qh5 {[%clk 0:02:35.4]} 12...
Re8 {[%clk 0:02:12.8]} 13. Qxf7+ {[%clk 0:02:15.7]} 13... Kh8 {[%clk 0:01:55.4]}
14. Qh5+ {[%clk 0:02:16.6]} 14... Kg8 {[%clk 0:01:55.6]} 15. Qh7+ {[%clk
0:02:17.5]} 15... Kf8 {[%clk 0:01:56]} 16. Qh8+ {[%clk 0:02:17.5]} 1-0

[Event "*** Titled Tuesday Blitz"]
[Site "Chess.com"]
[Date "2021.03.02"]
[Round "1"]
[White "JuliaEfremova"]
[Black "aa175"]
[Result "0-1"]
[WhiteElo "2227"]
[BlackElo "2544"]
[TimeControl "180+1"]
[EndTime "10:02:35 PST"]
[Termination "aa175 won by resignation"]

1. d4 {[%clk 0:02:58.2]} 1... e5 {[%clk 0:03:00]} 2. dxe5 {[%clk 0:02:57]} 2...
Nc6 {[%clk 0:03:00.4]} 3. e6 {[%clk 0:02:56.2]} 3... fxe6 {[%clk 0:02:54.5]} 4.
e4 {[%clk 0:02:55.9]} 4... Bc5 {[%clk 0:02:54.1]} 5. Nf3 {[%clk 0:02:52.7]} 5...
Nf6 {[%clk 0:02:47.9]} 6. Nc3 {[%clk 0:02:48.7]} 6... Ng4 {[%clk 0:02:34.3]} 7.
Be3 {[%clk 0:02:43.5]} 7... Nxe3 {[%clk 0:02:30.1]} 8. fxe3 {[%clk 0:02:44.4]}
8... O-O {[%clk 0:02:30.2]} 9. Qd2 {[%clk 0:02:37]} 9... Qf6 {[%clk 0:02:07.2]}
10. a3 {[%clk 0:02:27.6]} 10... Ne5 {[%clk 0:02:06.8]} 11. Be2 {[%clk
0:02:23.9]} 11... Ng4 {[%clk 0:02:05.2]} 12. O-O-O {[%clk 0:02:09.5]} 12... Bxe3
{[%clk 0:02:03.1]} 0-1

[Event "*** Titled Tuesday Blitz"]
[Site "Chess.com"]
[Date "2021.03.02"]
[Round "1"]
[White "tapu2"]
[Black "Make_it_shine060"]
[Result "1-0"]
[WhiteElo "2552"]
[BlackElo "2241"]
[TimeControl "180+1"]
[EndTime "10:02:39 PST"]
[Termination "tapu2 won by resignation"]

1. d4 {[%clk 0:02:57.6]} 1... Nf6 {[%clk 0:02:59.7]} 2. c4 {[%clk 0:02:56.9]}
2... g6 {[%clk 0:02:59.8]} 3. Nc3 {[%clk 0:02:54.2]} 3... d5 {[%clk 0:02:59.4]}
4. cxd5 {[%clk 0:02:52]} 4... Nxd5 {[%clk 0:03:00.3]} 5. e4 {[%clk 0:02:52.9]}
5... Nxc3 {[%clk 0:02:59.7]} 6. bxc3 {[%clk 0:02:53.8]} 6... Bg7 {[%clk
0:02:59.8]} 7. Be3 {[%clk 0:02:53.7]} 7... c5 {[%clk 0:02:58.3]} 8. Rc1 {[%clk
0:02:51.4]} 8... Qa5 {[%clk 0:02:50.5]} 9. Qd2 {[%clk 0:02:51.2]} 9... O-O
{[%clk 0:02:47.3]} 10. Nf3 {[%clk 0:02:51]} 10... Nc6 {[%clk 0:02:46.1]} 11. d5
{[%clk 0:02:51]} 11... Rd8 {[%clk 0:02:45.1]} 12. h4 {[%clk 0:02:45.9]} 12...
Bg4 {[%clk 0:02:40.9]} 13. Nh2 {[%clk 0:02:42.3]} 13... Ne5 {[%clk 0:02:27.7]}
14. f4 {[%clk 0:02:40.5]} 14... Nc6 {[%clk 0:02:06.1]} 15. Nxg4 {[%clk
0:02:38.5]} 15... h5 {[%clk 0:02:03.4]} 16. Nf2 {[%clk 0:02:36.1]} 16... e6
{[%clk 0:02:03]} 17. Bc4 {[%clk 0:02:32.5]} 17... exd5 {[%clk 0:02:02.1]} 18.
Bxd5 {[%clk 0:02:30.7]} 18... Ne7 {[%clk 0:01:59.3]} 19. c4 {[%clk 0:02:25.1]}
1-0

[Event "*** Titled Tuesday Blitz"]
[Site "Chess.com"]
[Date "2021.03.02"]
[Round "1"]
[White "KhamzinOlzhas"]
[Black "publicaccountcze"]
[Result "1-0"]
[WhiteElo "2534"]
[BlackElo "2220"]
[TimeControl "180+1"]
[EndTime "10:02:43 PST"]
[Termination "KhamzinOlzhas won by resignation"]

1. d4 {[%clk 0:03:00.9]} 1... d5 {[%clk 0:02:58]} 2. c4 {[%clk 0:03:00.6]} 2...
e6 {[%clk 0:02:58.4]} 3. Nc3 {[%clk 0:02:59.1]} 3... c5 {[%clk 0:02:58.3]} 4.
cxd5 {[%clk 0:02:58.7]} 4... exd5 {[%clk 0:02:57.2]} 5. Nf3 {[%clk 0:02:57]}
5... Nc6 {[%clk 0:02:57.5]} 6. dxc5 {[%clk 0:02:53.9]} 6... d4 {[%clk
0:02:55.8]} 7. Na4 {[%clk 0:02:54.4]} 7... Bxc5 {[%clk 0:02:51.5]} 8. Nxc5
{[%clk 0:02:55.3]} 8... Qa5+ {[%clk 0:02:50.4]} 9. Bd2 {[%clk 0:02:56]} 9...
Qxc5 {[%clk 0:02:50.1]} 10. Rc1 {[%clk 0:02:56.4]} 10... Qb6 {[%clk 0:02:49.7]}
11. e3 {[%clk 0:02:57.1]} 11... Be6 {[%clk 0:02:40]} 12. Qa4 {[%clk 0:02:49.7]}
12... dxe3 {[%clk 0:02:20.3]} 13. Bxe3 {[%clk 0:02:50.6]} 13... Qb4+ {[%clk
0:02:20]} 14. Qxb4 {[%clk 0:02:44.1]} 14... Nxb4 {[%clk 0:02:18.9]} 15. Bb5+
{[%clk 0:02:44.4]} 15... Nc6 {[%clk 0:02:11.2]} 16. Rxc6 {[%clk 0:02:42.1]}
16... Bd7 {[%clk 0:01:37.7]} 17. Rc5 {[%clk 0:02:40]} 17... Bxb5 {[%clk
0:01:36]} 18. Rxb5 {[%clk 0:02:40.9]} 18... Rc8 {[%clk 0:01:34.5]} 19. O-O
{[%clk 0:02:34.3]} 1-0

[Event "*** Titled Tuesday Blitz"]
[Site "Chess.com"]
[Date "2021.03.02"]
[Round "1"]
[White "sakkikuska"]
[Black "Maddie"]
[Result "1-0"]
[WhiteElo "2501"]
[BlackElo "2076"]
[TimeControl "180+1"]
[EndTime "10:03:04 PST"]
[Termination "sakkikuska won by resignation"]

1. e4 {[%clk 0:02:59.2]} 1... c6 {[%clk 0:02:59.6]} 2. d4 {[%clk 0:02:58.3]}
2... d5 {[%clk 0:03:00]} 3. Nc3 {[%clk 0:02:58]} 3... dxe4 {[%clk 0:02:59.4]} 4.
Nxe4 {[%clk 0:02:58.2]} 4... Nd7 {[%clk 0:02:59.2]} 5. Ng5 {[%clk 0:02:57.7]}
5... Ngf6 {[%clk 0:02:54.3]} 6. N1f3 {[%clk 0:02:55.7]} 6... e6 {[%clk
0:02:54.5]} 7. Bd3 {[%clk 0:02:55.6]} 7... Be7 {[%clk 0:02:52.7]} 8. Qe2 {[%clk
0:02:55.3]} 8... O-O {[%clk 0:02:52.4]} 9. O-O {[%clk 0:02:52.4]} 9... Nb6
{[%clk 0:02:50.9]} 10. c3 {[%clk 0:02:50.9]} 10... Nbd5 {[%clk 0:02:41]} 11. Ne4
{[%clk 0:02:49.5]} 11... Nxe4 {[%clk 0:02:39.7]} 12. Qxe4 {[%clk 0:02:49.7]}
12... Nf6 {[%clk 0:02:39.7]} 13. Qe2 {[%clk 0:02:49.9]} 13... c5 {[%clk
0:02:35.2]} 14. dxc5 {[%clk 0:02:42.2]} 14... Bxc5 {[%clk 0:02:34.4]} 15. Bg5
{[%clk 0:02:41.2]} 15... Be7 {[%clk 0:02:33.2]} 16. Rad1 {[%clk 0:02:40.1]}
16... Qa5 {[%clk 0:02:28.6]} 17. a3 {[%clk 0:02:33.4]} 17... b6 {[%clk
0:02:01.6]} 18. Bxf6 {[%clk 0:02:28.8]} 18... Bxf6 {[%clk 0:02:00.8]} 19. Qe4
{[%clk 0:02:29]} 19... g6 {[%clk 0:01:54.7]} 20. Qxa8 {[%clk 0:02:25]} 20... Bd7
{[%clk 0:01:44.5]} 21. Qe4 {[%clk 0:02:21.3]} 21... Ba4 {[%clk 0:01:43]} 22. Bc2
{[%clk 0:02:20.7]} 22... Bxc2 {[%clk 0:01:41.4]} 23. Qxc2 {[%clk 0:02:21.4]} 1-0

[Event "*** Titled Tuesday Blitz"]
[Site "Chess.com"]
[Date "2021.03.02"]
[Round "1"]
[White "MelihKaanCan"]
[Black "GoltsevDmitry2000"]
[Result "0-1"]
[WhiteElo "2399"]
[BlackElo "2755"]
[TimeControl "180+1"]
[EndTime "10:03:39 PST"]
[Termination "GoltsevDmitry2000 won by resignation"]

1. d4 {[%clk 0:02:58.3]} 1... Nf6 {[%clk 0:02:50.8]} 2. c4 {[%clk 0:02:57.5]}
2... e6 {[%clk 0:02:49.7]} 3. Nc3 {[%clk 0:02:58.1]} 3... Bb4 {[%clk 0:02:47.5]}
4. a3 {[%clk 0:02:58.1]} 4... Bxc3+ {[%clk 0:02:38.3]} 5. bxc3 {[%clk 0:02:59]}
5... c5 {[%clk 0:02:34.8]} 6. e3 {[%clk 0:02:42.2]} 6... O-O {[%clk 0:02:29.6]}
7. Nf3 {[%clk 0:02:36.3]} 7... d5 {[%clk 0:02:24.7]} 8. cxd5 {[%clk 0:02:29.4]}
8... Qxd5 {[%clk 0:02:16.8]} 9. Bd3 {[%clk 0:02:26.8]} 9... b6 {[%clk
0:02:13.7]} 10. O-O {[%clk 0:02:24.6]} 10... Ba6 {[%clk 0:02:09.8]} 11. Re1
{[%clk 0:02:13.1]} 11... Bxd3 {[%clk 0:01:59.9]} 12. Qxd3 {[%clk 0:02:14]} 12...
Ne4 {[%clk 0:02:00.8]} 13. c4 {[%clk 0:02:09]} 13... Qf5 {[%clk 0:01:56]} 14.
Bb2 {[%clk 0:02:01.8]} 14... Nc6 {[%clk 0:01:48.7]} 15. Nh4 {[%clk 0:01:47]}
15... Qxf2+ {[%clk 0:01:40]} 16. Kh1 {[%clk 0:01:30.9]} 16... Qxe1+ {[%clk
0:01:40.2]} 0-1

[Event "*** Titled Tuesday Blitz"]
[Site "Chess.com"]
[Date "2021.03.02"]
[Round "1"]
[White "Matols"]
[Black "ValeriyGrinev"]
[Result "0-1"]
[WhiteElo "2258"]
[BlackElo "2563"]
[TimeControl "180+1"]
[EndTime "10:03:51 PST"]
[Termination "ValeriyGrinev won by resignation"]

1. d4 {[%clk 0:03:00.9]} 1... d5 {[%clk 0:02:58.1]} 2. c4 {[%clk 0:03:00.7]}
2... e6 {[%clk 0:02:58.5]} 3. Nf3 {[%clk 0:03:00.2]} 3... Nf6 {[%clk 0:02:58.3]}
4. g3 {[%clk 0:03:00.3]} 4... dxc4 {[%clk 0:02:58.4]} 5. Bg2 {[%clk 0:02:59.5]}
5... Be7 {[%clk 0:02:57.7]} 6. O-O {[%clk 0:02:58.8]} 6... O-O {[%clk
0:02:58.2]} 7. Nbd2 {[%clk 0:02:56.7]} 7... c5 {[%clk 0:02:55.6]} 8. dxc5 {[%clk
0:02:52.2]} 8... c3 {[%clk 0:02:55.7]} 9. bxc3 {[%clk 0:02:49.9]} 9... Bxc5
{[%clk 0:02:54.8]} 10. Qc2 {[%clk 0:02:48.1]} 10... Bd7 {[%clk 0:02:48.4]} 11.
Ne5 {[%clk 0:02:44.8]} 11... Bc6 {[%clk 0:02:48.1]} 12. Nxc6 {[%clk 0:02:43.5]}
12... Nxc6 {[%clk 0:02:49]} 13. Rd1 {[%clk 0:02:41]} 13... Bxf2+ {[%clk
0:02:30.6]} 14. Kxf2 {[%clk 0:02:34.5]} 14... Qb6+ {[%clk 0:02:22.1]} 15. Ke1
{[%clk 0:01:40.7]} 15... Qg1+ {[%clk 0:02:19.6]} 16. Bf1 {[%clk 0:01:38.7]}
16... Ng4 {[%clk 0:02:20.2]} 17. Ne4 {[%clk 0:01:25.1]} 17... f5 {[%clk
0:02:16.8]} 18. Qb3 {[%clk 0:01:08.1]} 18... fxe4 {[%clk 0:02:08.7]} 19. Qxe6+
{[%clk 0:01:06.5]} 19... Kh8 {[%clk 0:02:09.3]} 0-1

[Event "*** Titled Tuesday Blitz"]
[Site "Chess.com"]
[Date "2021.03.02"]
[Round "1"]
[White "Firegrizzly"]
[Black "allvim"]
[Result "1-0"]
[WhiteElo "2676"]
[BlackElo "2354"]
[TimeControl "180+1"]
[EndTime "10:03:53 PST"]
[Termination "Firegrizzly won by resignation"]

1. d4 {[%clk 0:02:59.8]} 1... Nf6 {[%clk 0:02:51.8]} 2. Nf3 {[%clk 0:03:00.7]}
2... d5 {[%clk 0:02:51.5]} 3. Bf4 {[%clk 0:03:00.4]} 3... c5 {[%clk 0:02:51.7]}
4. e3 {[%clk 0:03:01.3]} 4... Nc6 {[%clk 0:02:51.9]} 5. c3 {[%clk 0:03:01]} 5...
Qb6 {[%clk 0:02:52.5]} 6. Qb3 {[%clk 0:03:01.2]} 6... c4 {[%clk 0:02:53]} 7. Qc2
{[%clk 0:03:01.9]} 7... Bf5 {[%clk 0:02:52.6]} 8. Qc1 {[%clk 0:03:02.5]} 8... e6
{[%clk 0:02:52.4]} 9. Nbd2 {[%clk 0:03:03]} 9... Nh5 {[%clk 0:02:52.7]} 10. Be2
{[%clk 0:02:55.7]} 10... Nxf4 {[%clk 0:02:50.9]} 11. exf4 {[%clk 0:02:56]} 11...
Bd6 {[%clk 0:02:51.6]} 12. g3 {[%clk 0:02:55.4]} 12... O-O {[%clk 0:02:45.6]}
13. O-O {[%clk 0:02:55.4]} 13... Qa5 {[%clk 0:02:46.2]} 14. b4 {[%clk
0:02:53.9]} 14... cxb3 {[%clk 0:02:45]} 15. axb3 {[%clk 0:02:53.7]} 15... Qc7
{[%clk 0:02:43.1]} 16. b4 {[%clk 0:02:52.8]} 16... a6 {[%clk 0:02:40.8]} 17. Qb2
{[%clk 0:02:51.6]} 17... Rfc8 {[%clk 0:02:41.2]} 18. Nb3 {[%clk 0:02:50.3]}
18... Ne7 {[%clk 0:02:32.3]} 19. Rfc1 {[%clk 0:02:47.3]} 19... f6 {[%clk
0:02:29.4]} 20. Nc5 {[%clk 0:02:45.9]} 20... Bxc5 {[%clk 0:02:05.8]} 21. bxc5
{[%clk 0:02:42.4]} 21... Rcb8 {[%clk 0:02:06.2]} 22. c4 {[%clk 0:02:36.5]} 22...
dxc4 {[%clk 0:01:56]} 23. Bxc4 {[%clk 0:02:35.5]} 23... b5 {[%clk 0:01:54.7]}
24. Ba2 {[%clk 0:02:17.4]} 24... Nd5 {[%clk 0:01:48.6]} 25. Nh4 {[%clk
0:02:15.3]} 25... Bh3 {[%clk 0:01:41.1]} 26. f5 {[%clk 0:02:13]} 26... Kh8
{[%clk 0:01:30.8]} 27. Re1 {[%clk 0:02:10.3]} 27... Re8 {[%clk 0:01:30.2]} 28.
fxe6 {[%clk 0:02:09.2]} 28... Bxe6 {[%clk 0:01:26.2]} 29. Rxe6 {[%clk
0:02:08.1]} 29... Rxe6 {[%clk 0:01:26.7]} 30. Bxd5 {[%clk 0:02:08]} 30... Rae8
{[%clk 0:01:26.6]} 31. Bxe6 {[%clk 0:02:07.9]} 31... Rxe6 {[%clk 0:01:27.5]} 32.
Qc3 {[%clk 0:02:03.9]} 1-0

[Event "*** Titled Tuesday Blitz"]
[Site "Chess.com"]
[Date "2021.03.02"]
[Round "1"]
[White "Gloomy_Wanderer"]
[Black "Rytenko_V"]
[Result "1-0"]
[WhiteElo "2700"]
[BlackElo "2371"]
[TimeControl "180+1"]
[EndTime "10:04:21 PST"]
[Termination "Gloomy_Wanderer won by resignation"]

1. d4 {[%clk 0:03:00.8]} 1... d5 {[%clk 0:02:57.1]} 2. c4 {[%clk 0:03:00.8]}
2... c6 {[%clk 0:02:57.1]} 3. cxd5 {[%clk 0:03:00.9]} 3... cxd5 {[%clk 0:02:57]}
4. Nc3 {[%clk 0:03:01.4]} 4... Nc6 {[%clk 0:02:57.5]} 5. e4 {[%clk 0:03:01.3]}
5... e6 {[%clk 0:02:54.6]} 6. e5 {[%clk 0:02:46]} 6... Bd7 {[%clk 0:02:47.2]} 7.
Nf3 {[%clk 0:02:45.6]} 7... Qb6 {[%clk 0:02:36.8]} 8. a3 {[%clk 0:02:27.9]} 8...
f6 {[%clk 0:02:30]} 9. exf6 {[%clk 0:02:24.2]} 9... Nxf6 {[%clk 0:02:30.9]} 10.
Bd3 {[%clk 0:02:24.4]} 10... Bd6 {[%clk 0:02:30.9]} 11. O-O {[%clk 0:02:24.3]}
11... O-O {[%clk 0:02:30.8]} 12. Re1 {[%clk 0:02:22.9]} 12... Rae8 {[%clk
0:02:30.3]} 13. Bg5 {[%clk 0:02:08.2]} 13... Bb8 {[%clk 0:02:18.3]} 14. Bh4
{[%clk 0:01:58.9]} 14... a6 {[%clk 0:02:17.7]} 15. Bg3 {[%clk 0:01:57.1]} 15...
Bxg3 {[%clk 0:02:16.4]} 16. hxg3 {[%clk 0:01:57.1]} 16... Qc7 {[%clk 0:02:15.9]}
17. Rc1 {[%clk 0:01:53.6]} 17... Qb8 {[%clk 0:02:04.9]} 18. Ne5 {[%clk
0:01:52.5]} 18... Nxd4 {[%clk 0:01:39.7]} 19. Bxh7+ {[%clk 0:01:51.5]} 19...
Kxh7 {[%clk 0:01:36.1]} 20. Qxd4 {[%clk 0:01:51.6]} 20... g6 {[%clk 0:01:17.5]}
21. Qh4+ {[%clk 0:01:49.2]} 21... Kg7 {[%clk 0:01:16.6]} 22. Qg5 {[%clk
0:01:49.5]} 22... Nh7 {[%clk 0:01:06.7]} 23. Qxg6+ {[%clk 0:01:45.6]} 23... Kh8
{[%clk 0:01:05.9]} 24. Nxd7 {[%clk 0:01:45.9]} 24... Rg8 {[%clk 0:01:02]} 25.
Qxg8+ {[%clk 0:01:45.5]} 25... Rxg8 {[%clk 0:01:01.7]} 26. Nxb8 {[%clk
0:01:45.7]} 1-0

[Event "*** Titled Tuesday Blitz"]
[Site "Chess.com"]
[Date "2021.03.02"]
[Round "1"]
[White "Blitzking642"]
[Black "AtabayevSaparmyrat"]
[Result "0-1"]
[WhiteElo "2362"]
[BlackElo "2694"]
[TimeControl "180+1"]
[EndTime "10:04:22 PST"]
[Termination "AtabayevSaparmyrat won by resignation"]

1. e4 {[%clk 0:03:00.9]} 1... c5 {[%clk 0:02:59.4]} 2. Nf3 {[%clk 0:03:00.7]}
2... d6 {[%clk 0:02:59.5]} 3. d4 {[%clk 0:03:00.9]} 3... cxd4 {[%clk 0:03:00.4]}
4. Nxd4 {[%clk 0:03:01.8]} 4... e5 {[%clk 0:03:00.9]} 5. Nf3 {[%clk 0:02:57.2]}
5... Nf6 {[%clk 0:03:01.1]} 6. Nc3 {[%clk 0:02:56.7]} 6... Be7 {[%clk
0:03:01.4]} 7. Bg5 {[%clk 0:02:54.3]} 7... Be6 {[%clk 0:03:01.6]} 8. Bxf6 {[%clk
0:02:54]} 8... Bxf6 {[%clk 0:03:02.5]} 9. Be2 {[%clk 0:02:35]} 9... O-O {[%clk
0:03:02]} 10. O-O {[%clk 0:02:35.6]} 10... Nc6 {[%clk 0:02:58.6]} 11. Nd5 {[%clk
0:02:35.6]} 11... Rc8 {[%clk 0:02:55.4]} 12. c3 {[%clk 0:02:33.6]} 12... Bg5
{[%clk 0:02:52.4]} 13. a4 {[%clk 0:02:16]} 13... f5 {[%clk 0:02:48.3]} 14. exf5
{[%clk 0:02:06.5]} 14... Bxf5 {[%clk 0:02:49.2]} 15. Bc4 {[%clk 0:02:01.8]}
15... Kh8 {[%clk 0:02:46.8]} 16. Nxg5 {[%clk 0:02:00]} 16... Qxg5 {[%clk
0:02:46.6]} 17. Qe2 {[%clk 0:01:51]} 17... e4 {[%clk 0:02:43.1]} 18. f4 {[%clk
0:01:39.6]} 18... exf3 {[%clk 0:02:36]} 19. Rxf3 {[%clk 0:01:36.9]} 19... Ne5
{[%clk 0:02:30.7]} 20. Rg3 {[%clk 0:01:37.1]} 20... Bg4 {[%clk 0:02:20.7]} 21.
Qe3 {[%clk 0:01:22.8]} 21... Qxe3+ {[%clk 0:01:55]} 22. Nxe3 {[%clk 0:01:23.7]}
22... Nxc4 {[%clk 0:01:55.4]} 23. Nxg4 {[%clk 0:01:20.1]} 23... Nxb2 {[%clk
0:01:55.7]} 24. Rb1 {[%clk 0:01:18.8]} 24... Nxa4 {[%clk 0:01:50.5]} 25. Rxb7
{[%clk 0:01:19.4]} 25... Nxc3 {[%clk 0:01:50.9]} 26. Re3 {[%clk 0:01:12.1]}
26... Ne2+ {[%clk 0:01:47.2]} 0-1

[Event "*** Titled Tuesday Blitz"]
[Site "Chess.com"]
[Date "2021.03.02"]
[Round "1"]
[White "Arseniy_Nesterov"]
[Black "Forantes"]
[Result "1-0"]
[WhiteElo "2784"]
[BlackElo "2412"]
[TimeControl "180+1"]
[EndTime "10:04:23 PST"]
[Termination "Arseniy_Nesterov won by resignation"]

1. d4 {[%clk 0:03:00.9]} 1... Nf6 {[%clk 0:02:55.1]} 2. c4 {[%clk 0:03:01.2]}
2... g6 {[%clk 0:02:54.3]} 3. Nc3 {[%clk 0:03:01]} 3... d5 {[%clk 0:02:53.8]} 4.
cxd5 {[%clk 0:03:01.1]} 4... Nxd5 {[%clk 0:02:53.5]} 5. e4 {[%clk 0:03:01.6]}
5... Nxc3 {[%clk 0:02:53.6]} 6. bxc3 {[%clk 0:03:02.5]} 6... Bg7 {[%clk
0:02:53.5]} 7. Qa4+ {[%clk 0:03:02.3]} 7... Nd7 {[%clk 0:02:45.4]} 8. Nf3 {[%clk
0:03:02]} 8... O-O {[%clk 0:02:44.8]} 9. Be2 {[%clk 0:03:01.9]} 9... c5 {[%clk
0:02:44.6]} 10. O-O {[%clk 0:03:01.6]} 10... Nb6 {[%clk 0:02:34.3]} 11. Qa3
{[%clk 0:03:01.3]} 11... cxd4 {[%clk 0:02:34.2]} 12. cxd4 {[%clk 0:03:02.2]}
12... Bg4 {[%clk 0:02:30.2]} 13. Rd1 {[%clk 0:03:02]} 13... Bxf3 {[%clk
0:01:52.9]} 14. gxf3 {[%clk 0:03:01.6]} 14... Bxd4 {[%clk 0:01:47.5]} 15. Bg5
{[%clk 0:03:01.2]} 15... Bxa1 {[%clk 0:01:28.2]} 16. Rxd8 {[%clk 0:03:00.6]}
16... Rfxd8 {[%clk 0:01:26.7]} 17. Qxe7 {[%clk 0:03:00.7]} 17... Rd7 {[%clk
0:01:22.6]} 18. Qa3 {[%clk 0:03:00.5]} 18... Bd4 {[%clk 0:01:03.5]} 19. Bb5
{[%clk 0:03:00]} 19... Rc7 {[%clk 0:00:57.5]} 20. Qd6 {[%clk 0:02:59.7]} 20...
Rc5 {[%clk 0:00:51.1]} 21. h4 {[%clk 0:02:59.2]} 21... Bxf2+ {[%clk 0:00:37.8]}
22. Kxf2 {[%clk 0:02:59]} 22... Rxb5 {[%clk 0:00:38.7]} 23. Qd4 {[%clk 0:02:59]}
23... f6 {[%clk 0:00:20.8]} 24. Qxf6 {[%clk 0:02:49.5]} 24... Rf8 {[%clk
0:00:21.3]} 25. Qe6+ {[%clk 0:02:47.6]} 25... Rf7 {[%clk 0:00:21.6]} 26. Qe8+
{[%clk 0:02:44.3]} 26... Rf8 {[%clk 0:00:21.4]} 27. Qxb5 {[%clk 0:02:45.2]}
27... Kg7 {[%clk 0:00:17.4]} 28. Qe5+ {[%clk 0:02:42]} 28... Kg8 {[%clk
0:00:17.3]} 29. Bh6 {[%clk 0:02:42.1]} 1-0

[Event "*** Titled Tuesday Blitz"]
[Site "Chess.com"]
[Date "2021.03.02"]
[Round "1"]
[White "Ladislav1969"]
[Black "Astaneh"]
[Result "0-1"]
[WhiteElo "2310"]
[BlackElo "2614"]
[TimeControl "180+1"]
[EndTime "10:04:24 PST"]
[Termination "Astaneh won by resignation"]

1. e4 {[%clk 0:03:00.9]} 1... c6 {[%clk 0:02:56.8]} 2. d4 {[%clk 0:03:00.7]}
2... d5 {[%clk 0:02:57.7]} 3. e5 {[%clk 0:03:01.3]} 3... c5 {[%clk 0:02:56.5]}
4. dxc5 {[%clk 0:03:00.2]} 4... Nc6 {[%clk 0:02:56.6]} 5. Nf3 {[%clk 0:02:51.5]}
5... Bg4 {[%clk 0:02:55.3]} 6. Bb5 {[%clk 0:02:46.3]} 6... e6 {[%clk 0:02:54.1]}
7. Be3 {[%clk 0:02:35.4]} 7... Qa5+ {[%clk 0:02:51.2]} 8. Nc3 {[%clk 0:02:35.2]}
8... a6 {[%clk 0:02:35.7]} 9. Bxc6+ {[%clk 0:02:34.9]} 9... bxc6 {[%clk
0:02:36.6]} 10. Qd4 {[%clk 0:02:26.3]} 10... Bxf3 {[%clk 0:02:35.6]} 11. gxf3
{[%clk 0:02:27.2]} 11... Ne7 {[%clk 0:02:33.9]} 12. b4 {[%clk 0:02:24.9]} 12...
Qc7 {[%clk 0:02:34]} 13. Na4 {[%clk 0:02:18.1]} 13... Nf5 {[%clk 0:02:31.3]} 14.
Qc3 {[%clk 0:02:13.9]} 14... a5 {[%clk 0:02:27.1]} 15. Nb6 {[%clk 0:02:11.9]}
15... Qxb6 {[%clk 0:02:22.8]} 16. cxb6 {[%clk 0:02:08.5]} 16... Bxb4 {[%clk
0:02:23.7]} 17. Qxb4 {[%clk 0:02:05.3]} 17... axb4 {[%clk 0:02:24.6]} 18. Bc5
{[%clk 0:02:03.6]} 18... Ra5 {[%clk 0:02:09.9]} 19. Bxb4 {[%clk 0:01:56]} 19...
Rb5 {[%clk 0:02:09.5]} 20. c3 {[%clk 0:01:44]} 20... Rxb6 {[%clk 0:02:06.6]} 21.
Kd2 {[%clk 0:01:40.7]} 21... Kd7 {[%clk 0:02:05.6]} 22. a4 {[%clk 0:01:40.5]}
22... Ra8 {[%clk 0:02:04.1]} 23. a5 {[%clk 0:01:25.5]} 23... Rb5 {[%clk
0:02:03.6]} 24. Rhb1 {[%clk 0:01:11.5]} 24... c5 {[%clk 0:02:01.6]} 25. Bxc5
{[%clk 0:01:07.7]} 25... Rxc5 {[%clk 0:02:00.9]} 26. Rb7+ {[%clk 0:01:07.2]}
26... Rc7 {[%clk 0:02:00]} 27. a6 {[%clk 0:01:07.4]} 27... Rxb7 {[%clk
0:01:57.5]} 28. axb7 {[%clk 0:01:07.2]} 28... Rb8 {[%clk 0:01:58]} 29. Ra8
{[%clk 0:00:59.1]} 29... Kc7 {[%clk 0:01:56.9]} 0-1